Cogmind - Beta 11.1 @@@ ROGUE MODE // 2022.07.16 @ 02:56:50 Player: Calazard Result: Destroyed by B-90 Cyclops with Nova Cannon Performance ------------- Evolutions (8) 4000 Regions Visited (17) 3400 Robots Destroyed (15) 75 Value Destroyed (528) 528 Prototype IDs (19) 380 Alien Tech Used (0) 0 Bonus (1207) 1207 TOTAL SCORE: 9590 Bonus ------- Follower Combat Kills 407 Entered DSFs 500 Met Data Miner 300 Cogmind --------- Core Integrity 0/1450 Matter 271/300 Energy 92/100 System Corruption 14% Temperature Cool (11) Movement Flying (35) Location -2/Research Parts ------- > --- POWER (3) -------- (None) > --- PROPULSION (6) --- Cooled Impulse Thruster > --- UTILITY (11) ----- Armor Integrity Analyzer Improved Hacking Suite System Shield > --- WEAPON (3) ------- (None) > --- INVENTORY (5) ---- Micro Antimatter Reactor Armored Huge Wheel Enhanced Nova Cannon Peak State ------------ > --- POWER ------------ Light Antimatter Reactor Particle Reactor Light Quantum Reactor > --- PROPULSION ------- Myomer Leg Armored Huge Wheel Armored Huge Wheel Centrium Wheel > --- UTILITY ---------- Experimental Power Amplifier Experimental Power Amplifier Advanced Cryofiber Web Compact Battery Gravity Neutralizer Core Analyzer Armor Integrity Analyzer Thermal Shield Advanced System Shield Drone Bay > --- WEAPON ----------- Quantum Rifle Enhanced Quantum Rifle Enhanced Nova Cannon > --- INVENTORY -------- Armored Huge Wheel Armored Huge Wheel Enhanced Nova Cannon [Rating: 140] Favorites ----------- Power Fission Core Engine Improved Deuterium Engine Power Core Fission Core Reactor Particle Reactor Propulsion Xenon Bombardment Thruster Treads Medium Treads Leg Carbon-fiber Leg Wheel Armored Huge Wheel Hover Unit Gravmag System Flight Unit Xenon Bombardment Thruster Utility Propulsion Shielding Device Gravity Neutralizer Storage Compact Battery Processor Corruption Screen Hackware Advanced System Shield Protection Propulsion Shielding Weapon Gauss Rifle Energy Gun Quantum Rifle Energy Cannon Enhanced Nova Cannon Ballistic Gun Gauss Rifle Special Weapon Improved Remote Datajack Build | -11 -10 -10 -9 -8 -8 -7 -6 -6 -6 -5 -5 -5 -5 -4 -4 -3 -2 ------- Run | Scr Mat Min Mat Mat Sto Fac Fac Low Dat Pro Fac Upp Upp Fac DSF Res Res Slots Evolved 16 | . . . 2 2 . 2 2 . . . 2 . . 2 . 2 2 Power 2 | . . . . . . 1 . . . . 1 . . . . . . Propulsion 4 | . . . 2 . . . . . . . 1 . . . . 1 . Utility 9 | . . . . 2 . . 2 . . . . . . 2 . 1 2 Weapon 1 | . . . . . . 1 . . . . . . . . . . . Parts Attached 126 | 3 1 5 1 4 10 28 6 1 . 2 20 7 . 3 9 10 16 Power 17 | 1 . 1 . . . 4 . . . 1 1 2 . 1 2 . 4 Engine 5 | 1 . 1 . . . 3 . . . . . . . . . . . Core 7 | . . . . . . 1 . . . 1 1 2 . 1 1 . . Reactor 5 | . . . . . . . . . . . . . . . 1 . 4 Propulsion 36 | 2 . 2 1 2 6 6 1 . . . 5 2 . 1 2 1 5 Treads 2 | . . . . . . . . . . . 1 . . . . . 1 Leg 11 | . . . . 2 4 2 . . . . . 2 . . . 1 . Wheel 6 | 2 . . . . . . . . . . . . . 1 2 . 1 Hover 1 | . . . . . . 1 . . . . . . . . . . . Flight 16 | . . 2 1 . 2 3 1 . . . 4 . . . . . 3 Utility 50 | . . 1 . 1 4 10 4 1 . 1 11 3 . 1 3 5 5 Device 27 | . . . . . 4 5 1 1 . 1 6 2 . 1 2 2 2 Storage 1 | . . . . . . . . . . . . . . . 1 . . Processor 5 | . . . . . . 1 . . . . 1 1 . . . 2 . Hackware 5 | . . . . 1 . . . . . . . . . . . 1 3 Protection 12 | . . 1 . . . 4 3 . . . 4 . . . . . . Artifact . | . . . . . . . . . . . . . . . . . . Weapon 23 | . 1 1 . 1 . 8 1 . . . 3 . . . 2 4 2 Energy Gun 8 | . . . . . . 2 . . . . 1 . . . 1 3 1 Energy Cannon 1 | . . . . . . . . . . . . . . . . . 1 Ballistic Gun 13 | . 1 1 . 1 . 6 1 . . . 2 . . . . 1 . Ballistic Cannon . | . . . . . . . . . . . . . . . . . . Launcher . | . . . . . . . . . . . . . . . . . . Special Weapon 1 | . . . . . . . . . . . . . . . 1 . . Impact Weapon . | . . . . . . . . . . . . . . . . . . Slashing Weapon . | . . . . . . . . . . . . . . . . . . Piercing Weapon . | . . . . . . . . . . . . . . . . . . Special Melee Weapon . | . . . . . . . . . . . . . . . . . . Unidentified Prototypes 6 | . . . . . . 1 1 . . . 1 . . . . 1 2 Parts Lost 56 | . . . . . 13 2 . . . 2 15 6 . . . . 18 Power 8 | . . . . . 1 . . . . . 2 2 . . . . 3 Propulsion 21 | . . . . . 6 1 . . . 2 5 2 . . . . 5 Utility 20 | . . . . . 5 . . . . . 5 2 . . . . 8 Weapon 7 | . . . . . 1 1 . . . . 3 . . . . . 2 Highest Loss Streak 17 | . . . . . 7 2 . . . 2 15 4 . . . . 17 To Critical Strikes 2 | . . . . . . . . . . . 1 . . . . . 1 Average Slot Usage (%) 58 | . 44 61 66 57 63 42 72 75 80 74 51 47 23 32 59 87 73 Engine 3 | . 14 14 11 9 4 5 6 6 6 4 . . . . . . . Core 3 | . . . . . . . . . . 5 3 9 . 3 7 9 1 Reactor 1 | . . . . . . . . . . . . . . . 1 4 9 Leg 4 | . . . . 3 20 6 . . . . . 10 . . . 3 1 Wheel 2 | . 22 6 . . . . . . . . . . . 4 9 14 11 Flight 6 | . . 14 33 27 7 2 19 20 20 15 4 . . . . . 2 Device 11 | . . . . . 15 8 6 8 13 15 14 9 11 14 19 22 18 Processor 5 | . . . . . . 2 6 6 6 6 5 10 11 10 10 9 7 Hackware 1 | . . . . . 7 . . . . . . . . . . 3 8 Protection 6 | . . 3 11 9 4 2 20 20 20 15 8 4 . . . . . Energy Gun 1 | . . . . . . 3 . . . . 1 . . . 1 9 6 Ballistic Gun 5 | . 8 21 11 9 4 5 11 13 13 9 5 . . . . . . Naked Turns 23 | . . . . . 1 22 . . . . . . . . . . . Heaviest Build 89 | 3 5 8 8 10 12 27 21 21 21 28 25 23 2 13 54 69 89 Greatest Support 84 | 26 26 10 12 12 77 34 27 28 27 27 28 30 3 16 84 84 84 Greatest Overweight (x) 3 | . . 1 . . . 3 . . . 1 1 . . . 1 . 1 Average Overweight (x) . | . . . . . . . . . . . . . . . . . . Largest Inventory Capacity 5 | 5 5 5 5 5 5 5 5 5 5 5 5 5 5 5 5 5 5 Average Capacity 5 | 5 5 5 5 5 5 5 5 5 5 5 5 5 5 5 5 5 5 Most Carried 5 | 4 4 5 4 5 5 5 5 5 5 5 5 5 5 5 5 5 5 Average Carried 4 | 2 3 4 4 4 4 4 4 5 5 5 4 4 5 4 3 4 4 Final Capacity 5 | 5 5 5 5 5 5 5 5 5 5 5 5 5 5 5 5 5 5 Final Carried 5 | 4 3 5 4 5 4 5 5 5 5 5 5 5 5 4 5 5 4 Class Distribution -------------------- 71% | Mutant 14% | Sprinter 10% | Generator-Mutant Dominant Class ---------------- Mutant | -10/Materials Mutant | -10/Mines Mutant | -9/Materials Mutant | -8/Materials Mutant | -8/Storage Mutant | -7/Factory Sprinter | -6/Factory Sprinter | -6/Lower Caves Sprinter | -6/Data Miner Sprinter | -5/Proximity Caves Mutant | -5/Factory Mutant | -5/Upper Caves Mutant | -5/Upper Caves Mutant | -4/Factory Mutant | -4/DSF Generator-Mutant | -3/Research Generator-Mutant | -2/Research Resources | -11 -10 -10 -9 -8 -8 -7 -6 -6 -6 -5 -5 -5 -5 -4 -4 -3 -2 ----------- Run | Scr Mat Min Mat Mat Sto Fac Fac Low Dat Pro Fac Upp Upp Fac DSF Res Res Matter Collected 1355 | 230 . 84 . . 22 84 . 28 . 264 206 107 . . 94 73 163 Remotely . | . . . . . . . . . . . . . . . . . . Salvage Created 419 | . . 42 . . . 15 . . . 31 113 . . . . 31 187 Parts 32 | . . 7 . . . 2 . . . 1 11 . . . . 3 8 Haulers Intercepted . | . . . . . . . . . . . . . . . . . . Recyclers Shooed . | . . . . . . . . . . . . . . . . . . Parts Field Recycled . | . . . . . . . . . . . . . . . . . . Retrieved Matter . | . . . . . . . . . . . . . . . . . . Parts Self-Destructed 6 | . . . . . . . . . . 4 . 2 . . . . . Prevented 3 | . . . . . . . . . . . . 3 . . . . . Kills | -11 -10 -10 -9 -8 -8 -7 -6 -6 -6 -5 -5 -5 -5 -4 -4 -3 -2 ------- Run | Scr Mat Min Mat Mat Sto Fac Fac Low Dat Pro Fac Upp Upp Fac DSF Res Res Combat Hostiles Destroyed 14 | . . 3 . . . 1 . . . . 4 . . . . 1 5 Melee 2 | . . . . . . . . . . . . . . . . . 2 Guns 12 | . . 3 . . . 1 . . . . 4 . . . . 1 3 Classes Destroyed 3 | . . 1 . . . . . . . 1 1 . . . . . . Minesweeper 1 | . . . . . . . . . . 1 . . . . . . . Swarmer 13 | . . 3 . . . 1 . . . . 3 . . . . 1 5 Programmer 1 | . . . . . . . . . . . 1 . . . . . . Best Kill Streak 4 | . . 3 . . . 1 . . . 1 4 . . . . 1 4 Combat Bots Only 4 | . . 3 . . . 1 . . . . 4 . . . . 1 4 Max Kills in Single Turn 2 | . . 1 . . . 1 . . . 1 1 . . . . 1 2 Gunslinging 1 | . . . . . . . . . . . . . . . . . 1 Exploded . | . . . . . . . . . . . . . . . . . . Melee 1 | . . . . . . . . . . . . . . . . . 1 Uniques/NPCs Destroyed . | . . . . . . . . . . . . . . . . . . Combat | -11 -10 -10 -9 -8 -8 -7 -6 -6 -6 -5 -5 -5 -5 -4 -4 -3 -2 -------- Run | Scr Mat Min Mat Mat Sto Fac Fac Low Dat Pro Fac Upp Upp Fac DSF Res Res Damage Taken 9869 | . 71 101 26 145 1552 943 6 303 . 270 1700 520 32 . 156 237 3807 Core 3773 | . 32 24 . 30 517 634 6 132 . 64 618 118 16 . 80 21 1481 Absorbed by Shields 38 | . . . . . 38 . . . . . . . . . . . . Redirected to Shielding 338 | . . . 3 6 10 . . 21 . 36 224 38 . . . . . Core Remaining (%) 64 | 100 . 77 100 . . 9 . . . 76 . . 24 . 93 98 . Volleys Fired 52 | . . 7 . . . 4 . 2 . 11 14 . . . 2 2 10 Largest 3 | . . 2 . . . 2 . 1 . 1 2 . . . 1 3 3 Hottest 282 | . . 40 . . . 56 . 28 . 28 53 . . . 94 282 282 Shots Fired 75 | . . 14 . . . 6 . 2 . 11 15 . . . 2 4 21 Gun 69 | . . 14 . . . 6 . 2 . 11 15 . . . 1 4 16 Cannon 5 | . . . . . . . . . . . . . . . . . 5 Launcher . | . . . . . . . . . . . . . . . . . . Special 1 | . . . . . . . . . . . . . . . 1 . . Kinetic 48 | . . 14 . . . 6 . 2 . 11 15 . . . . . . Thermal 26 | . . . . . . . . . . . . . . . 1 4 21 Explosive . | . . . . . . . . . . . . . . . . . . Electromagnetic . | . . . . . . . . . . . . . . . . . . Robot Hit Streak 6 | . . 2 . . . 3 . 4 . 3 4 . . . 5 1 6 Robot Miss Streak 6 | . . 6 . . . 1 . 1 . 4 2 . . . . 2 3 Penetration Max . | . . . . . . . . . . . . . . . . . . Secondary Targets 3 | . . . . . . . . . . . 1 . . . . 1 1 Max Gunslinging Chain 1 | . . . . . . . . . . . 1 . . . . 1 1 Shots Hit Robots 41 | . . 4 . . . 2 . 2 . 6 10 . . . 2 1 14 Core Hits 20 | . . 3 . . . 2 . . . 3 5 . . . . 1 6 Critical Kills . | . . . . . . . . . . . . . . . . . . Critical Parts Destroyed . | . . . . . . . . . . . . . . . . . . Critical Strikes . | . . . . . . . . . . . . . . . . . . Melee Attacks . | . . . . . . . . . . . . . . . . . . Impact . | . . . . . . . . . . . . . . . . . . Slashing . | . . . . . . . . . . . . . . . . . . Piercing . | . . . . . . . . . . . . . . . . . . Sneak Attacks . | . . . . . . . . . . . . . . . . . . Combat Hostiles . | . . . . . . . . . . . . . . . . . . Follow-up Attacks . | . . . . . . . . . . . . . . . . . . Damage Inflicted 1115 | . 11 49 . . 21 55 . 31 . 117 218 . . . 29 28 556 Guns 832 | . . 49 . . . 41 . 31 . 117 218 . . . 29 28 319 Cannons 210 | . . . . . . . . . . . . . . . . . 210 Explosions . | . . . . . . . . . . . . . . . . . . Melee . | . . . . . . . . . . . . . . . . . . Ramming 73 | . 11 . . . 21 14 . . . . . . . . . . 27 Kinetic 456 | . . 49 . . . 41 . 31 . 117 218 . . . . . . Thermal 586 | . . . . . . . . . . . . . . . 29 28 529 Explosive . | . . . . . . . . . . . . . . . . . . Electromagnetic . | . . . . . . . . . . . . . . . . . . Impact . | . . . . . . . . . . . . . . . . . . Slashing . | . . . . . . . . . . . . . . . . . . Piercing . | . . . . . . . . . . . . . . . . . . Highest Corruption 14 | . . . . . 1 3 . . . . . . . . . . 14 Average Corruption 5 | . . . . . 1 3 . . . . . . . . . . 8 Corruption Purged . | . . . . . . . . . . . . . . . . . . Corruption Blocked 14 | . . . . . . . . . . 1 3 10 . . . . . Effects 10 | . . . . . . 3 . . . . . . . . . . 7 Message Errors 2 | . . . . . . . . . . . . . . . . . 2 Matter Fused 5 | . . . . . . 2 . . . . . . . . . . 3 Data Loss (minor) 2 | . . . . . . 1 . . . . . . . . . . 1 Misdirections 1 | . . . . . . . . . . . . . . . . . 1 Overload Shots . | . . . . . . . . . . . . . . . . . . Overflow Damage 34 | . . . . . . . . . . . . . . . . . 34 Projectiles 17 | . . . . . . . . . . . . . . . . . 17 Explosions . | . . . . . . . . . . . . . . . . . . Melee 17 | . . . . . . . . . . . . . . . . . 17 Knockbacks . | . . . . . . . . . . . . . . . . . . Impact . | . . . . . . . . . . . . . . . . . . Kinetic . | . . . . . . . . . . . . . . . . . . Secondary . | . . . . . . . . . . . . . . . . . . Self-Inflicted Damage 24 | . 5 . . . 2 4 . . . . . . . . . . 13 Shots . | . . . . . . . . . . . . . . . . . . Rammed 11 | . 2 . . . 2 4 . . . . 1 . . . . . 2 Targets Rammed 22 | . 2 . . . 12 5 . . . . 1 . . . . . 2 Kicked 11 | . . . . . 10 1 . . . . . . . . . . . Crushed . | . . . . . . . . . . . . . . . . . . Highest Temperature 385 | . . 15 . . 14 23 . . . 303 . . . . . . 385 Average Temperature 157 | . . 8 . . 14 23 . . . 123 . . . . . . 184 Received Heat Transfer 1589 | . 36 27 6 18 494 258 . 36 . 12 66 279 . . 48 12 297 Siege Activations . | . . . . . . . . . . . . . . . . . . Robots Corrupted . | . . . . . . . . . . . . . . . . . . Combat Hostiles . | . . . . . . . . . . . . . . . . . . Parts Fried 1 | . . . . . . . . . . . . . . . . . 1 Impact Corruptions 1 | . . . . . . . . . . . . . . . . . 1 Robots Melted . | . . . . . . . . . . . . . . . . . . Combat Hostiles . | . . . . . . . . . . . . . . . . . . Parts Melted . | . . . . . . . . . . . . . . . . . . Heat Transferred 592 | . . . . . . . . . . . . . . . 37 37 518 Parts Sabotaged . | . . . . . . . . . . . . . . . . . . Parts Stolen . | . . . . . . . . . . . . . . . . . . Parts Stripped . | . . . . . . . . . . . . . . . . . . Power Chain Reactions . | . . . . . . . . . . . . . . . . . . Missiles Intercepted . | . . . . . . . . . . . . . . . . . . Alert | -11 -10 -10 -9 -8 -8 -7 -6 -6 -6 -5 -5 -5 -5 -4 -4 -3 -2 ------- Run | Scr Mat Min Mat Mat Sto Fac Fac Low Dat Pro Fac Upp Upp Fac DSF Res Res Peak Influence 390 | . 6 131 151 78 79 157 15 . . . 135 . . . 137 390 327 Initial 219 | . . 1 50 63 32 2 . . . . 18 . . . . 76 219 Average 90 | . 4 63 76 64 35 38 1 . . . 51 . . . 90 234 283 Maximum Alert Level 1 | . . . . . . . . . . . . . . . . 1 1 Low Security (%) 82 | 100 100 100 100 100 100 100 100 . . . 100 . . 100 100 45 . Level 1 17 | . . . . . . . . . . . . . . . . 54 100 Level 2 . | . . . . . . . . . . . . . . . . . . Level 3 . | . . . . . . . . . . . . . . . . . . Level 4 . | . . . . . . . . . . . . . . . . . . Level 5 . | . . . . . . . . . . . . . . . . . . High Security . | . . . . . . . . . . . . . . . . . . Max Security . | . . . . . . . . . . . . . . . . . . Squads Dispatched 14 | . 2 . 1 1 2 1 . . . . 2 . . . . 2 3 Investigation 3 | . 1 . . . 2 . . . . . . . . . . . . Extermination 1 | . . . . . . . . . . . 1 . . . . . . Reinforcement 7 | . 1 . 1 1 . 1 . . . . 1 . . . . 1 1 Assault . | . . . . . . . . . . . . . . . . . . Garrison 3 | . . . . . . . . . . . . . . . . 1 2 Intercept . | . . . . . . . . . . . . . . . . . . Searches Triggered . | . . . . . . . . . . . . . . . . . . Construction Impeded . | . . . . . . . . . . . . . . . . . . Haulers Reinforced 1 | . . . . . . . . . . . . . . . . 1 . Active Scanning Responses . | . . . . . . . . . . . . . . . . . . Cargo Convoy Interrupts . | . . . . . . . . . . . . . . . . . . Stealth | -11 -10 -10 -9 -8 -8 -7 -6 -6 -6 -5 -5 -5 -5 -4 -4 -3 -2 --------- Run | Scr Mat Min Mat Mat Sto Fac Fac Low Dat Pro Fac Upp Upp Fac DSF Res Res Distress Signals 4 | . . . 1 1 . . . . . . 1 . . . . . 1 Communications Jammed . | . . . . . . . . . . . . . . . . . . Distress Signals . | . . . . . . . . . . . . . . . . . . Times Spotted 167 | . 5 10 11 5 20 16 1 12 . 7 26 7 4 . 8 9 26 Peak Tracking Total 18 | . 4 3 12 5 18 9 1 10 . 4 12 5 4 . 4 5 12 Tactical Retreats 21 | . . 2 1 . . 3 . 3 . 2 5 . . . . 1 4 Traps | -11 -10 -10 -9 -8 -8 -7 -6 -6 -6 -5 -5 -5 -5 -4 -4 -3 -2 ------- Run | Scr Mat Min Mat Mat Sto Fac Fac Low Dat Pro Fac Upp Upp Fac DSF Res Res Traps Triggered 4 | . . . . . 2 1 . . . 1 . . . . . . . Indirectly . | . . . . . . . . . . . . . . . . . . Trap Hack Attempts . | . . . . . . . . . . . . . . . . . . Triggered . | . . . . . . . . . . . . . . . . . . Disarmed . | . . . . . . . . . . . . . . . . . . Reprogrammed . | . . . . . . . . . . . . . . . . . . Reused 1 | . . . . . . . . . . 1 . . . . . . . Traps Extracted . | . . . . . . . . . . . . . . . . . . Installed 7 | . . 2 . . 3 . . . . 2 . . . . . . . Triggered 1 | . . . . . . . . . . 1 . . . . . . . Most Traps Carried 3 | . . 3 3 3 3 . . . . 2 . . . . . . . Machines | -11 -10 -10 -9 -8 -8 -7 -6 -6 -6 -5 -5 -5 -5 -4 -4 -3 -2 ---------- Run | Scr Mat Min Mat Mat Sto Fac Fac Low Dat Pro Fac Upp Upp Fac DSF Res Res Machines Disabled 4 | . . . . . . . . . . . . . . . 1 2 1 Max in Single Turn 1 | . . . . . . . . . . . . . . . . . 1 Machines Sabotaged . | . . . . . . . . . . . . . . . . . . Garrisons Compromised . | . . . . . . . . . . . . . . . . . . Overloaded Fab Kills . | . . . . . . . . . . . . . . . . . . Hacking | -11 -10 -10 -9 -8 -8 -7 -6 -6 -6 -5 -5 -5 -5 -4 -4 -3 -2 --------- Run | Scr Mat Min Mat Mat Sto Fac Fac Low Dat Pro Fac Upp Upp Fac DSF Res Res Machines Accessed 26 | . 2 . 2 . 7 5 . . 4 . 2 . . 2 . 1 1 Terminals 19 | . 2 . 2 . 7 4 . . . . 1 . . 1 . 1 1 Fabricators . | . . . . . . . . . . . . . . . . . . Repair Stations 1 | . . . . . . 1 . . . . . . . . . . . Recycling Units . | . . . . . . . . . . . . . . . . . . Scanalyzers 1 | . . . . . . . . . . . . . . 1 . . . Garrison Access 1 | . . . . . . . . . . . 1 . . . . . . Total Hacks 69 | . 5 . 4 . 15 8 . . 28 . 3 . . 2 . 3 1 Successful 41 | . 1 . 3 . 3 3 . . 28 . . . . 1 . 1 1 Failed 28 | . 4 . 1 . 12 5 . . . . 3 . . 1 . 2 . Catastrophic 8 | . 2 . . . 3 1 . . . . 1 . . . . 1 . Database Lockouts . | . . . . . . . . . . . . . . . . . . Manual 22 | . 5 . 2 . 9 3 . . . . 2 . . . . 1 . Terminals 37 | . 5 . 4 . 15 6 . . . . 2 . . 1 . 3 1 Fabricators . | . . . . . . . . . . . . . . . . . . Repair Stations 2 | . . . . . . 2 . . . . . . . . . . . Recycling Units . | . . . . . . . . . . . . . . . . . . Scanalyzers 1 | . . . . . . . . . . . . . . 1 . . . Garrison Access 1 | . . . . . . . . . . . 1 . . . . . . Terminal Hacks 39 | . 1 . 2 . 3 2 . . 28 . . . . 1 . 1 1 Record 11 | . . . . . . . . . 11 . . . . . . . . Part Schematic 9 | . . . . . . . . . 9 . . . . . . . . Robot Schematic 5 | . . . . . . . . . 5 . . . . . . . . Prototype ID Bank 4 | . . . 1 . . . . . 3 . . . . . . . . Open Door 2 | . . . . . 2 . . . . . . . . . . . . Open DSF 3 | . . . . . . 1 . . . . . . . 1 . . 1 Zone Layout 5 | . 1 . 1 . 1 1 . . . . . . . . . 1 . Fabricator Hacks . | . . . . . . . . . . . . . . . . . . Repair Station Hacks 1 | . . . . . . 1 . . . . . . . . . . . Refit 1 | . . . . . . 1 . . . . . . . . . . . Recycling Unit Hacks . | . . . . . . . . . . . . . . . . . . Scanalyzer . | . . . . . . . . . . . . . . . . . . Garrison Access Hacks . | . . . . . . . . . . . . . . . . . . Unauthorized Hacks 1 | . . . 1 . . . . . . . . . . . . . . Terminals 1 | . . . 1 . . . . . . . . . . . . . . Assimilate 1 | . . . 1 . . . . . . . . . . . . . . Fabricators . | . . . . . . . . . . . . . . . . . . Repair Stations . | . . . . . . . . . . . . . . . . . . Recycling Units . | . . . . . . . . . . . . . . . . . . Scanalyzers . | . . . . . . . . . . . . . . . . . . Garrison Access . | . . . . . . . . . . . . . . . . . . Data Cores Recovered . | . . . . . . . . . . . . . . . . . . Used . | . . . . . . . . . . . . . . . . . . Hacking Detections 17 | . 2 . 2 . 5 4 . . . . 2 . . 1 . 1 . Full Trace Events 3 | . 1 . . . 2 . . . . . . . . . . . . Feedback Events 1 | . . . . . 1 . . . . . . . . . . . . Corruption 1 | . . . . . 1 . . . . . . . . . . . . Feedback Blocked . | . . . . . . . . . . . . . . . . . . Robot Schematics Acquired 5 | . . . . . . . . . 5 . . . . . . . . Robots Built . | . . . . . . . . . . . . . . . . . . Authchips . | . . . . . . . . . . . . . . . . . . Time . | . . . . . . . . . . . . . . . . . . Total Robot Build Rating . | . . . . . . . . . . . . . . . . . . Part Schematics Acquired 9 | . . . . . . . . . 9 . . . . . . . . Parts Built . | . . . . . . . . . . . . . . . . . . Authchips . | . . . . . . . . . . . . . . . . . . Time . | . . . . . . . . . . . . . . . . . . Total Part Build Rating . | . . . . . . . . . . . . . . . . . . Parts Repaired . | . . . . . . . . . . . . . . . . . . Time . | . . . . . . . . . . . . . . . . . . Parts Recycled . | . . . . . . . . . . . . . . . . . . Recycled Matter . | . . . . . . . . . . . . . . . . . . Retrieved Matter . | . . . . . . . . . . . . . . . . . . Retrieved Components . | . . . . . . . . . . . . . . . . . . Parts Scanalyzed . | . . . . . . . . . . . . . . . . . . Part Schematics Acquired . | . . . . . . . . . . . . . . . . . . Parts Damaged . | . . . . . . . . . . . . . . . . . . Bothacking | -11 -10 -10 -9 -8 -8 -7 -6 -6 -6 -5 -5 -5 -5 -4 -4 -3 -2 ------------ Run | Scr Mat Min Mat Mat Sto Fac Fac Low Dat Pro Fac Upp Upp Fac DSF Res Res Used RIF Installer . | . . . . . . . . . . . . . . . . . . Robots Hacked 1 | . . . . . . . . . . . . . . . 1 . . Non-combat . | . . . . . . . . . . . . . . . . . . Combat 1 | . . . . . . . . . . . . . . . 1 . . Robot Hacks Applied 1 | . . . . . . . . . . . . . . . 1 . . parse_system 1 | . . . . . . . . . . . . . . . 1 . . Relay Couplers Released . | . . . . . . . . . . . . . . . . . . Fabnet Peak Effective % . | . . . . . . . . . . . . . . . . . . Robots Rewired . | . . . . . . . . . . . . . . . . . . Allies Hacked 5 | . . . . . . . . . . . . . 1 . 3 1 . Hacks Repelled . | . . . . . . . . . . . . . . . . . . Allies | -11 -10 -10 -9 -8 -8 -7 -6 -6 -6 -5 -5 -5 -5 -4 -4 -3 -2 -------- Run | Scr Mat Min Mat Mat Sto Fac Fac Low Dat Pro Fac Upp Upp Fac DSF Res Res Total Allies 10 | . . . . . . . . . . 1 . . 2 . 4 3 . Largest Group 4 | . . . . . . . . . . 1 . . 1 1 4 4 2 Highest-Rated Group 399 | . . . . . . . . . . 96 . . 165 165 326 399 206 Highest-Rated Ally 165 | . . . . . . . . . . 96 . . 165 165 165 165 165 Total Orders 1 | . . . . . . . . . . . . . . . . . 1 EXPLORE 1 | . . . . . . . . . . . . . . . . . 1 Ally Attacks 54 | . . . . . . . . . . 3 . . . . 12 37 2 Total Damage 1935 | . . . . . . . . . . 58 . . . . 762 1082 33 Kills 12 | . . . . . . . . . . 1 . . . . 4 7 . Allies Corrupted 1 | . . . . . . . . . . 1 . . . . . . . Allies Melted . | . . . . . . . . . . . . . . . . . . Intel | -11 -10 -10 -9 -8 -8 -7 -6 -6 -6 -5 -5 -5 -5 -4 -4 -3 -2 ------- Run | Scr Mat Min Mat Mat Sto Fac Fac Low Dat Pro Fac Upp Upp Fac DSF Res Res Robot Analysis Total . | . . . . . . . . . . . . . . . . . . Derelict Logs Recovered 6 | . . 3 . . . . . . . 1 . 2 . . . . . Drone Launches 18 | . . . . . 16 . . . . . . . . . . . 2 Drone Recoveries 2 | . . . . . 2 . . . . . . . . . . . . Exploration | -11 -10 -10 -9 -8 -8 -7 -6 -6 -6 -5 -5 -5 -5 -4 -4 -3 -2 ------------- Run | Scr Mat Min Mat Mat Sto Fac Fac Low Dat Pro Fac Upp Upp Fac DSF Res Res Turns Passed 4088 | 54 71 324 64 49 292 503 76 144 25 446 482 794 14 55 159 174 362 Spaces Moved 5410 | 57 81 557 184 102 327 558 194 418 79 988 459 691 27 61 125 152 350 Core 575 | 13 . . . . 139 160 . . . . 91 86 27 9 . . 50 Treads 173 | . . . . . . . . . . . 173 . . . . . . Legs 833 | . . . . . 66 162 . . . . . 605 . . . . . Wheels 879 | 44 81 163 . . . . . . . . . . . 52 125 152 262 Hover 58 | . . . . . . 58 . . . . . . . . . . . Flight 2892 | . . 394 184 102 122 178 194 418 79 988 195 . . . . . 38 Fastest Speed 28 | 50 80 37 34 34 32 34 32 28 32 32 29 50 50 50 90 96 35 Average Speed 64 | 80 83 49 34 37 62 71 32 31 32 38 85 111 50 84 104 96 83 Slowest Speed 200 | 90 90 125 34 44 130 200 34 32 32 98 160 120 50 90 110 96 112 Overloaded Moves 13 | . . . . . . . . 13 . . . . . . . . . Propulsion Burnouts . | . . . . . . . . . . . . . . . . . . Robots Hopped 44 | . . 3 8 1 4 1 . 9 . 1 13 . . . . . 4 Cave-ins Triggered . | . . . . . . . . . . . . . . . . . . Exploration Rate (%) 39 | 3 21 88 22 10 80 20 7 71 68 89 19 84 4 1 93 7 18 Regions Visited 17 Branch Regions 7 Pre-discovered Areas 2 | . . 1 . . . . . . 1 . . . . . . . . Known Exits Taken 3 | . . . 1 . . . . . . . 1 . . 1 . . . Unknown Exits Taken 13 | 1 1 1 . 1 1 1 1 1 1 1 . 1 1 . . 1 . Scrap Searched 8 | . . 2 . . . . . 1 . 1 . 3 1 . . . . Spaces Dug . | . . . . . . . . . . . . . . . . . . Terrain Destroyed 2 | . . . . . . . . . . . . . . . . . 2 Melee . | . . . . . . . . . . . . . . . . . . Projectile 2 | . . . . . . . . . . . . . . . . . 2 AOE . | . . . . . . . . . . . . . . . . . . Terrain Rammed . | . . . . . . . . . . . . . . . . . . Walls Destroyed . | . . . . . . . . . . . . . . . . . . Machines Disabled . | . . . . . . . . . . . . . . . . . . Actions | -11 -10 -10 -9 -8 -8 -7 -6 -6 -6 -5 -5 -5 -5 -4 -4 -3 -2 --------- Run | Scr Mat Min Mat Mat Sto Fac Fac Low Dat Pro Fac Upp Upp Fac DSF Res Res Total 5867 | 63 84 589 176 111 406 653 208 416 78 1041 516 712 26 63 151 175 399 Wait 138 | . . 4 . . 13 30 1 5 . 34 24 13 . . 6 4 4 Move 5311 | 56 80 550 169 99 318 555 193 399 78 985 436 690 26 60 124 151 342 Hop 38 | . . 3 6 1 4 1 . 9 . 1 9 . . . . . 4 Pick Up 57 | 4 . 9 . 3 4 13 4 . . 1 5 2 . . 5 1 6 Fast Attach 79 | 3 . 4 . 4 8 17 2 1 . 2 10 5 . 2 3 8 10 Attach 35 | . 1 . 1 . 1 9 4 . . . 6 2 . 1 6 . 4 Detach 1 | . . . . . . . 1 . . . . . . . . . . Swap 12 | . . 1 . . 1 2 . . . . 4 . . . . 2 2 Drop 76 | . 1 9 . 4 8 17 3 . . 5 7 . . . . 7 15 Fire 52 | . . 7 . . . 4 . 2 . 11 14 . . . 2 2 10 Melee . | . . . . . . . . . . . . . . . . . . Ram 10 | . 2 . . . 2 4 . . . . . . . . . . 2 Kick 11 | . . . . . 10 1 . . . . . . . . . . . Crush 1 | . . . . . . . . . . . 1 . . . . . . Escape Stasis 30 | . . . . . 27 . . . . . . . . . 3 . . Rewire 2 | . . . . . . . . . . . . . . . 2 . . Trap 7 | . . 2 . . 3 . . . . 2 . . . . . . . Miscellaneous 7 | . . . . . 7 . . . . . . . . . . . . Route ------- -11/Scrapyard -10/Materials -10/Mines (discovered 2 exits: *Mat x2) -9/Materials (discovered 2 exits: *Mat x2) -8/Materials -8/Storage -7/Factory -6/Factory -6/Lower Caves -6/Data Miner -5/Proximity Caves -5/Factory (discovered 2 exits: *Upp x2) -5/Upper Caves -5/Upper Caves -4/Factory (discovered 2 exits: Res / DSF) -4/DSF -3/Research -2/Research (discovered 1 exit: [*Qua]) History --------- Turn | Location | Event 13 | -11/Scrapyard | Discovered new exit (range 16) 55 | -11/Scrapyard | Entered Materials 70 | -10/Materials | Discovered new exit (range 15) 126 | -10/Materials | Entered Mines 152 | -10/Mines | YI-UF0 nonchalantly dropped a Grenade Launcher on the ground 309 | -10/Mines | Build established: Mutant 328 | -10/Mines | Learned location of 2 exits from Materials 347 | -10/Mines | Found a hidden stash of uninstalled traps 365 | -10/Mines | Learned location of Mines (-9) 392 | -10/Mines | Learned Materials interactive machine intel 440 | -10/Mines | Discovered new exit (range 7) 446 | -10/Mines | Discovered new exit (range 9) 450 | -10/Mines | Entered Materials 450 | -9/Materials | Evolved 2 slots: Propulsion x2 451 | -9/Materials | Identified exit to Materials 452 | -9/Materials | Loaded intel: 16 interactive machine locations 514 | -9/Materials | Entered another Materials area 514 | -8/Materials | Evolved 2 slots: Utility x2 558 | -8/Materials | Discovered new exit (range 6) 563 | -8/Materials | Entered Storage 755 | -8/Storage | Lost 3 parts (1p1u1w) 796 | -8/Storage | Core integrity fell below 50% 825 | -8/Storage | Lost 7 parts (4n3u) 846 | -8/Storage | Core integrity fell below 20% 847 | -8/Storage | Discovered new exit (range 16) 855 | -8/Storage | Entered Factory 855 | -7/Factory | Evolved 2 slots: Power x1, Weapon x1 875 | -7/Factory | Lost 3 parts (2n1u) 1099 | -7/Factory | Released all parts (9) 1154 | -7/Factory | Core integrity fell below 50% 1180 | -7/Factory | Core integrity fell below 20% 1357 | -7/Factory | Discovered new exit (range 5) 1358 | -7/Factory | Entered another Factory area 1358 | -6/Factory | Evolved 2 slots: Utility x2 1433 | -6/Factory | Discovered new exit (range 6) 1434 | -6/Factory | Entered Lower Caves 1512 | -6/Lower Caves | Attracted the attention of an 0b10 checkpoint 1576 | -6/Lower Caves | A Derelict revealed a hidden shortcut to meet someone special 1578 | -6/Lower Caves | Entered Data Miner 1578 | -6/Data Miner | Discovered new exit (range 6) 1585 | -6/Data Miner | Met Data Miner 1591 | -6/Data Miner | Learned location of Section 7 (-2) 1591 | -6/Data Miner | Acquired the access code to Warlord's prototype stash 1596 | -6/Data Miner | Received God Mode back door access code from Data Miner 1603 | -6/Data Miner | Entered Proximity Caves 1613 | -5/Proximity Caves | Escorted by Enhanced Grunt 1625 | -5/Proximity Caves | Build established: Sprinter 1873 | -5/Proximity Caves | Learned location of 1 exit from Factory 1902 | -5/Proximity Caves | Spotted B-75 Beast 2046 | -5/Proximity Caves | Discovered new exit (range 9) 2049 | -5/Proximity Caves | Entered Factory 2049 | -5/Factory | Evolved 2 slots: Power x1, Propulsion x1 2050 | -5/Factory | Identified exit to Upper Caves 2217 | -5/Factory | Build established: Mutant 2499 | -5/Factory | Core integrity fell below 50% 2510 | -5/Factory | Lost 15 parts (2p5n5u3w) 2527 | -5/Factory | Discovered exit to Upper Caves (range 10) 2531 | -5/Factory | Entered Upper Caves 2532 | -5/Upper Caves | Encountered a Warlord checkpoint 2553 | -5/Upper Caves | Learned Factory emergency access door positions 2713 | -5/Upper Caves | Learned location of 1 exit from Factory 3324 | -5/Upper Caves | Attracted the attention of an 0b10 base 3324 | -5/Upper Caves | Discovered new exit (range 2) 3325 | -5/Upper Caves | Entered another Upper Caves area 3336 | -5/Upper Caves | ME-RLN showed up to help 3336 | -5/Upper Caves | ME-RLN assimilated hostile S-27 Virus 3338 | -5/Upper Caves | ME-RLN revealed a hidden path 3339 | -5/Upper Caves | Entered Factory 3339 | -4/Factory | Accompanied by 1 ally (ME-RLN) 3339 | -4/Factory | Evolved 2 slots: Utility x2 3340 | -4/Factory | Identified exit to Research 3353 | -4/Factory | Lost 4 parts (2p2n) 3394 | -4/Factory | Identified exit to DSF 3394 | -4/Factory | Entered DSF 3394 | -4/DSF | Accompanied by 1 ally (ME-RLN) 3412 | -4/DSF | Additional patrols routed to DSF 3478 | -4/DSF | Discovered exit to Research (range 14) 3497 | -4/DSF | ME-RLN assimilated hostile S-27 Virus 3499 | -4/DSF | ME-RLN assimilated hostile S-27 Virus 3553 | -4/DSF | Entered Research 3553 | -3/Research | Accompanied by 4 allies (ME-RLN) 3553 | -3/Research | Evolved 2 slots: Propulsion x1, Utility x1 3606 | -3/Research | Spotted B-86 Titan 3640 | -3/Research | ME-RLN assimilated hostile W-44 Eye 3693 | -3/Research | Discovered new exit (range 16) 3724 | -3/Research | Garrison activated, responded to threat 3727 | -3/Research | Entered another Research area 3727 | -2/Research | Accompanied by 2 allies (ME-RLN) 3727 | -2/Research | Evolved 2 slots: Utility x2 3940 | -2/Research | P-80 Master assimilated allied W-44 Eye 3942 | -2/Research | Garrison activated, responded to threat 3980 | -2/Research | System corruption reached 10% 4017 | -2/Research | Spotted B-90 Cyclops 4075 | -2/Research | Core integrity fell below 50% 4082 | -2/Research | Spotted B-90 Cyclops 4083 | -2/Research | Core integrity fell below 20% 4088 | -2/Research | Discovered new exit (range 11) 4089 | -2/Research | Destroyed by B-90 Cyclops with Nova Cannon Last Messages --------------- 04053_ Dropped Lgt. Antimatter Reactor. 04053_ Acquired Mic. Antimatter Reactor. 04054_ AUSPAHRUMA#Z6>NTZKB& 04055_ Slammed into S-43 Plague. 04055_ S-43 Plague destroyed. 04056_ Acquired Unknown Flight Unit. 04056_ Identified Xenon Bombardment Thruster. 04058_ Acquired 10 matter. 04058_ Adv. System Shield destroyed. 04060_ Slug penetrates Wall. 04068_ Acquired Biometal Medium Treads. 04071_ Xenon Bombardment Thruster destroyed. 04075_ P-80 Master resets Y-72 Warden, system corruption cleaned. 04076_ Slug penetrates Wall. 04078_ B-90 Cyclops activates siege mode. 04081_ System corrupted: Matter fused (-9). 04083_ Biometal Medium Treads destroyed. 04086_ Acquired Prototype Flight Unit. 04086_ Identified Cld. Impulse Thruster. 04088_ EXIT=FOUND Map ----- +----------------------------------------------------+ | # !#? ?# !!! " #?# #??# " | | # ## # !!! # ### #??# " | | # ## # !!! * # #??# " | | # ## ] # # #### | | ######### # ] # / | | ????????# ############## | #### " | | ????????# =#????? ?# ] ####? " | | ????????# #?????? # | #???? | | ????????# #???# """ " #???? | | ????????# #???# """ # ###???? | | ????????# #???# """ # ####??? | | ????????# #???# # ?? | | ????????# #???# + ##?? | | ????????########???# #g #??? | | ???????????????????# #ss #??? | | ???????????????????######;##; """ #??? | | ?????????????????????# ] ! """ #??? | | ?????????????????????# """ #??? | | ????????????????????## """ #??? | | ?????????????????????; """ ? ???? | | ?????????????????????# """ ?? ?????? | | ?????????????????????# = * """ ????????? | | ?????????????????????# == ????? | | ?????????????????????# == ????? | | ?????????????????????+ ????? | | ?????????????????????#@ ?????? | | ?????????????????????# ?????? | | ?????????????????????# #BB########## #?????? | | ?????????????????????# #BB#????????? ??????? | | ?????????????????????# ####??????????? ??????? | | ?????????????????????# #??????????????????????? | | ?????????????????????# #??????????????????????? | | ?????????????????????# #??????????????????????? | | ????????????????????? Y ??????????????????????? | | ????????????????????? < ??????????????????????? | | ????????????????????? ??????????????????????? | | ?????????????????????###??????????????????????? | | ??????????????????????????????????????????????? | | ??????????????????????????????????????????????? | | ??????????????????????????????????????????????? | | ??????????????????????????????????????????????? | | ??????????????????????????????????????????????? | | ??????????????????????????????????????????????? | | ??????????????????????????????????????????????? | | ??????????????????????????????????????????????? | | ??????????????????????????????????????????????? | | ??????????????????????????????????????????????? | | ??????????????????????????????????????????????? | | ??????????????????????????????????????????????? | | ??????????????????????????????????????????????? | +----------------------------------------------------+ Best States ------------- Heat Dissipation 90 Energy Generation 102 Energy Capacity 960 Matter Stores 300 Matter Capacity 300 Sight Range 22 Robot Scan Range 16 Terrain Scan Density 10 ECM Strength 1 Jamming Range 12 Cloak Strength 3 Power Amplification 80 Additional Mass Support 12 Base Temperature (-) 200 Corruption Block 14 Resistance: TH 25 Propulsion Shielding 66 Weapon Shielding 33 Evasion (%) 64 Core Analysis 6 Armor Integrity Analysis 30 Recoil Reduction 1 Matter Filtering 30 Offensive Hacking 12 Defensive Hacking 24 Trap Extractor Capacity 6 Item Schematics ----------------- Combat Drone Bay | -6/Data Miner | Free Lgt. Regenerative Plating | -6/Data Miner | Free Cld. Gravmag System | -6/Data Miner | Free Imp. Thermal Defense Suite | -6/Data Miner | Free Imp. KE Penetrator | -6/Data Miner | Free Field Propulsion Array | -6/Data Miner | Free Adv. Transmission Jammer | -6/Data Miner | Free Hvy. Gauss Cannon | -6/Data Miner | Free Adv. Component Analysis Suite | -6/Data Miner | Free Robot Schematics ------------------ C-35 Carver | -6/Data Miner | Free H-66 Slayer | -6/Data Miner | Free B-48 Gladiator | -6/Data Miner | Free Y-64 Sentinel | -6/Data Miner | Free R-10 Processor | -6/Data Miner | Free Fabricated ------------ Nothing Alien Tech Used ----------------- None Achievements -------------- None Challenges ------------ None Game ------ Seed AlloyDynamicWand Manual? 0 Play Time 00:54:59 Cumulative 35.5 hours Start 2022.07.16 @ 02:01:56 End 2022.07.16 @ 02:56:50 Sessions 1 Manual Loads 0 Difficulty Rogue Special Mode None Game No. 52 Rogue 52 Adventurer 0 Explorer 0 Win Type - Total 0 Types 0/0/0/0/0/0/0/0/0 Lore% 30 Gallery% 46 Achievement% 33 Wizard Run 0 Options --------- ASCII 0 Keyboard 0 Movement Numpad Keybinds 0 Fullscreen 0 Font 16/Terminus Map View 76x50 Tactical HUD 1 Map Filters NONE Filters NONE Steam X RUN: 1668f340-9701-44bc-8668-189088e15a06